[Event "Late-Titled-Tuesday-Blitz-February-20-2024"]
[Site "Chess.com"]
[Date "2024.02.20"]
[Round "7"]
[White "OverallStranger"]
[Black "Zq1"]
[Result "0-1"]
[WhiteElo "2353"]
[BlackElo "2494"]
[TimeControl "180+1"]
[EndTime "15:18:07 PST"]
[Termination "Zq1 won by checkmate"]

1. d4 {[%clk 0:03:00.9]} 1... Nf6 {[%clk 0:02:59]} 2. c4 {[%clk 0:02:59.1]} 2...
a6 {[%clk 0:02:59.1]} 3. Nc3 {[%clk 0:02:58.1]} 3... c5 {[%clk 0:02:59.1]} 4.
Nf3 {[%clk 0:02:55.6]} 4... cxd4 {[%clk 0:02:58.7]} 5. Nxd4 {[%clk 0:02:56.3]}
5... d5 {[%clk 0:02:58.9]} 6. cxd5 {[%clk 0:02:47.6]} 6... Nxd5 {[%clk
0:02:58.1]} 7. Nxd5 {[%clk 0:02:48.3]} 7... Qxd5 {[%clk 0:02:57.2]} 8. e3 {[%clk
0:02:40.7]} 8... e5 {[%clk 0:02:55.4]} 9. Nf3 {[%clk 0:02:39.9]} 9... Qxd1+
{[%clk 0:02:53.2]} 10. Kxd1 {[%clk 0:02:40.8]} 10... f6 {[%clk 0:02:52.7]} 11.
Bc4 {[%clk 0:02:34.4]} 11... Nc6 {[%clk 0:02:48.4]} 12. a3 {[%clk 0:02:33.8]}
12... Bf5 {[%clk 0:02:44.2]} 13. Ke2 {[%clk 0:02:31]} 13... O-O-O {[%clk
0:02:43.3]} 14. b4 {[%clk 0:02:26.7]} 14... b5 {[%clk 0:02:42.1]} 15. Ba2 {[%clk
0:02:15.4]} 15... Bd3+ {[%clk 0:02:41.3]} 16. Ke1 {[%clk 0:02:15.8]} 16... e4
{[%clk 0:02:37.4]} 17. Nd2 {[%clk 0:02:13]} 17... Bd6 {[%clk 0:02:31]} 18. Bb1
{[%clk 0:02:11.4]} 18... Be5 {[%clk 0:02:17.5]} 19. Bxd3 {[%clk 0:01:55]} 19...
Bxa1 {[%clk 0:02:14.2]} 20. Bxe4 {[%clk 0:01:54.2]} 20... Ne5 {[%clk 0:02:10.4]}
21. Ke2 {[%clk 0:01:45.6]} 21... g6 {[%clk 0:02:07.9]} 22. Nb3 {[%clk
0:01:43.8]} 22... Bc3 {[%clk 0:02:07]} 23. Nc5 {[%clk 0:01:41.6]} 23... f5
{[%clk 0:02:05.4]} 24. Bb7+ {[%clk 0:01:40]} 24... Kc7 {[%clk 0:02:02.6]} 25.
Bxa6 {[%clk 0:01:39.2]} 25... Kb6 {[%clk 0:02:02.9]} 26. a4 {[%clk 0:00:54.3]}
26... Bxb4 {[%clk 0:02:00.8]} 27. Bxb5 {[%clk 0:00:52.5]} 27... Bxc5 {[%clk
0:01:55.5]} 28. Bb2 {[%clk 0:00:51.8]} 28... Bd6 {[%clk 0:01:50.6]} 29. Rd1
{[%clk 0:00:43.9]} 29... Bb8 {[%clk 0:01:46.4]} 30. Rc1 {[%clk 0:00:41.9]} 30...
Rc8 {[%clk 0:01:43.8]} 31. Rb1 {[%clk 0:00:25.1]} 31... Rhd8 {[%clk 0:01:22.9]}
32. Bd4+ {[%clk 0:00:19.9]} 32... Ka5 {[%clk 0:01:19.9]} 33. h3 {[%clk
0:00:14.5]} 33... Rc2+ {[%clk 0:01:01.5]} 34. Ke1 {[%clk 0:00:14.9]} 34... Bd6
{[%clk 0:00:46.7]} 35. Bb6+ {[%clk 0:00:14.1]} 35... Kxb6 {[%clk 0:00:43.8]} 36.
Bd3+ {[%clk 0:00:15]} 36... Ka5 {[%clk 0:00:33.3]} 37. Bxc2 {[%clk 0:00:14.3]}
37... Bb4+ {[%clk 0:00:33.3]} 38. Ke2 {[%clk 0:00:14.2]} 38... Rd2+ {[%clk
0:00:32.9]} 39. Kf1 {[%clk 0:00:14.9]} 39... Rxc2 {[%clk 0:00:32.6]} 40. Rd1
{[%clk 0:00:15.4]} 40... Rd2 {[%clk 0:00:31.3]} 41. Rc1 {[%clk 0:00:15.6]} 41...
Rxf2+ {[%clk 0:00:28.8]} 42. Kg1 {[%clk 0:00:13.9]} 42... Re2 {[%clk 0:00:24.3]}
43. Rc7 {[%clk 0:00:13.2]} 43... Kxa4 {[%clk 0:00:19.7]} 44. Rxh7 {[%clk
0:00:13]} 44... Rxe3 {[%clk 0:00:19.5]} 45. h4 {[%clk 0:00:12]} 45... Re1+
{[%clk 0:00:16.6]} 46. Kf2 {[%clk 0:00:11.3]} 46... Ng4+ {[%clk 0:00:15.8]} 47.
Kf3 {[%clk 0:00:09.9]} 47... Bd6 {[%clk 0:00:10.7]} 48. Ra7+ {[%clk 0:00:08.9]}
48... Kb5 {[%clk 0:00:10.2]} 49. Rb7+ {[%clk 0:00:08.7]} 49... Kc6 {[%clk
0:00:10.3]} 50. Rb3 {[%clk 0:00:09.1]} 50... Bc5 {[%clk 0:00:10]} 51. Kf4 {[%clk
0:00:08.8]} 51... Be3+ {[%clk 0:00:08.8]} 52. Kf3 {[%clk 0:00:09.2]} 52... Bh6
{[%clk 0:00:07.7]} 53. Rc3+ {[%clk 0:00:08.3]} 53... Kd5 {[%clk 0:00:07.8]} 54.
h5 {[%clk 0:00:07.7]} 54... gxh5 {[%clk 0:00:06.8]} 55. Kg3 {[%clk 0:00:07.5]}
55... Re3+ {[%clk 0:00:06.2]} 56. Rxe3 {[%clk 0:00:07.3]} 56... Nxe3 {[%clk
0:00:06.4]} 57. Kh4 {[%clk 0:00:07.3]} 57... Nxg2+ {[%clk 0:00:05.8]} 58. Kxh5
{[%clk 0:00:08.2]} 58... Bg7 {[%clk 0:00:05.5]} 59. Kg5 {[%clk 0:00:08.3]} 59...
f4 {[%clk 0:00:05.5]} 60. Kg4 {[%clk 0:00:08.7]} 60... Ke4 {[%clk 0:00:06]} 61.
Kh3 {[%clk 0:00:09.2]} 61... f3 {[%clk 0:00:06.3]} 62. Kg3 {[%clk 0:00:09.7]}
62... Be5+ {[%clk 0:00:06.2]} 63. Kf2 {[%clk 0:00:10.6]} 63... Bd4+ {[%clk
0:00:06.5]} 64. Kf1 {[%clk 0:00:11.5]} 64... Ne3+ {[%clk 0:00:06.3]} 65. Ke1
{[%clk 0:00:12.4]} 65... Ng4 {[%clk 0:00:06.3]} 66. Kf1 {[%clk 0:00:13.3]} 66...
Nh2+ {[%clk 0:00:06.2]} 67. Ke1 {[%clk 0:00:13.5]} 67... f2+ {[%clk 0:00:06.5]}
68. Kd2 {[%clk 0:00:14.2]} 68... f1=Q {[%clk 0:00:06.6]} 69. Kc2 {[%clk
0:00:14.8]} 69... Qc4+ {[%clk 0:00:06.5]} 70. Kb1 {[%clk 0:00:14.8]} 70... Qe2
{[%clk 0:00:06.3]} 71. Kc1 {[%clk 0:00:14.6]} 71... Kd3 {[%clk 0:00:06.4]} 72.
Kb1 {[%clk 0:00:14.9]} 72... Qc2# {[%clk 0:00:06.3]} 0-1

[Event "Late-Titled-Tuesday-Blitz-February-20-2024"]
[Site "Chess.com"]
[Date "2024.02.20"]
[Round "7"]
[White "JackRodgers"]
[Black "maroro07"]
[Result "1/2-1/2"]
[WhiteElo "2549"]
[BlackElo "2414"]
[TimeControl "180+1"]
[EndTime "15:18:10 PST"]
[Termination "Game drawn - insufficient material"]

1. d4 {[%clk 0:03:00.9]} 1... e6 {[%clk 0:03:00.9]} 2. c4 {[%clk 0:02:59.7]}
2... d5 {[%clk 0:03:00.7]} 3. Nc3 {[%clk 0:02:59.7]} 3... c6 {[%clk 0:03:00.6]}
4. e4 {[%clk 0:03:00]} 4... dxe4 {[%clk 0:02:54.9]} 5. Nxe4 {[%clk 0:03:00.9]}
5... Be7 {[%clk 0:02:54.9]} 6. Nf3 {[%clk 0:03:00.6]} 6... Nf6 {[%clk
0:02:53.3]} 7. Bd3 {[%clk 0:02:57.6]} 7... O-O {[%clk 0:02:47.1]} 8. O-O {[%clk
0:02:55.1]} 8... Nbd7 {[%clk 0:02:40.7]} 9. Bg5 {[%clk 0:02:49.2]} 9... Nxe4
{[%clk 0:02:29.6]} 10. Bxe7 {[%clk 0:02:48.4]} 10... Qxe7 {[%clk 0:02:30.3]} 11.
Bxe4 {[%clk 0:02:48.3]} 11... Nf6 {[%clk 0:02:30.3]} 12. Bc2 {[%clk 0:02:48.3]}
12... b6 {[%clk 0:02:28.6]} 13. Qe2 {[%clk 0:02:38.5]} 13... Bb7 {[%clk
0:02:25.1]} 14. Rfd1 {[%clk 0:02:33.7]} 14... Rfd8 {[%clk 0:02:13.4]} 15. Rd2
{[%clk 0:02:31.2]} 15... Qc7 {[%clk 0:02:07.6]} 16. Rad1 {[%clk 0:02:29.9]}
16... c5 {[%clk 0:02:04]} 17. b3 {[%clk 0:02:17.8]} 17... cxd4 {[%clk
0:01:44.6]} 18. Nxd4 {[%clk 0:02:18.7]} 18... Rd7 {[%clk 0:01:07.8]} 19. Nb5
{[%clk 0:02:09.3]} 19... Qc6 {[%clk 0:01:02.5]} 20. f3 {[%clk 0:02:08.4]} 20...
Rad8 {[%clk 0:00:57.4]} 21. Rxd7 {[%clk 0:02:07.2]} 21... Rxd7 {[%clk
0:00:58.3]} 22. Rxd7 {[%clk 0:02:07.2]} 22... Qxd7 {[%clk 0:00:54.8]} 23. Qd3
{[%clk 0:01:54]} 23... Qxd3 {[%clk 0:00:52.8]} 24. Bxd3 {[%clk 0:01:54.9]} 24...
a5 {[%clk 0:00:32.1]} 25. Kf2 {[%clk 0:01:50.8]} 25... Kf8 {[%clk 0:00:31.5]}
26. Ke3 {[%clk 0:01:51.1]} 26... Ke7 {[%clk 0:00:31.6]} 27. Kd4 {[%clk 0:01:45]}
27... Bc6 {[%clk 0:00:29.7]} 28. Nc3 {[%clk 0:01:44.2]} 28... Kd6 {[%clk
0:00:28.3]} 29. a3 {[%clk 0:01:39.6]} 29... e5+ {[%clk 0:00:20.4]} 30. Ke3
{[%clk 0:01:39.9]} 30... g6 {[%clk 0:00:19.8]} 31. b4 {[%clk 0:01:38.7]} 31...
axb4 {[%clk 0:00:17.8]} 32. axb4 {[%clk 0:01:39.6]} 32... Nd7 {[%clk 0:00:18.1]}
33. Be4 {[%clk 0:01:37.5]} 33... f5 {[%clk 0:00:17.3]} 34. Bxc6 {[%clk
0:01:32.5]} 34... Kxc6 {[%clk 0:00:18.2]} 35. f4 {[%clk 0:01:16.3]} 35... exf4+
{[%clk 0:00:12.8]} 36. Kxf4 {[%clk 0:01:17.2]} 36... h6 {[%clk 0:00:12.5]} 37.
h4 {[%clk 0:01:16.7]} 37... Kd6 {[%clk 0:00:10.2]} 38. Nb5+ {[%clk 0:01:14.3]}
38... Ke6 {[%clk 0:00:09.8]} 39. Nd4+ {[%clk 0:01:14.9]} 39... Kf6 {[%clk
0:00:09.5]} 40. Nc6 {[%clk 0:01:07.3]} 40... g5+ {[%clk 0:00:09.2]} 41. Ke3
{[%clk 0:01:07.7]} 41... gxh4 {[%clk 0:00:06.4]} 42. Kf4 {[%clk 0:01:02.8]}
42... Ke6 {[%clk 0:00:07]} 43. Nd4+ {[%clk 0:01:02.6]} 43... Kf6 {[%clk
0:00:06.1]} 44. Nxf5 {[%clk 0:01:02.4]} 44... Ne5 {[%clk 0:00:06.2]} 45. Nxh4
{[%clk 0:00:36.5]} 45... Nxc4 {[%clk 0:00:05.6]} 46. Ke4 {[%clk 0:00:33.2]}
46... Ke6 {[%clk 0:00:03.3]} 47. Kd4 {[%clk 0:00:31.2]} 47... Nd6 {[%clk
0:00:02.8]} 48. g4 {[%clk 0:00:28.9]} 48... Kd7 {[%clk 0:00:02.1]} 49. Kd5
{[%clk 0:00:27.5]} 49... Nb5 {[%clk 0:00:01.9]} 50. Nf5 {[%clk 0:00:26.7]} 50...
Nc3+ {[%clk 0:00:02.1]} 51. Kc4 {[%clk 0:00:25.6]} 51... Ne4 {[%clk 0:00:02]}
52. Nxh6 {[%clk 0:00:25.6]} 52... Kc6 {[%clk 0:00:01.4]} 53. b5+ {[%clk
0:00:21.4]} 53... Kd6 {[%clk 0:00:01.3]} 54. Kd4 {[%clk 0:00:21.8]} 54... Nf6
{[%clk 0:00:01.4]} 55. g5 {[%clk 0:00:20.6]} 55... Nd7 {[%clk 0:00:02]} 56. g6
{[%clk 0:00:18.8]} 56... Nc5 {[%clk 0:00:02.5]} 57. g7 {[%clk 0:00:18.6]} 57...
Ne6+ {[%clk 0:00:02.1]} 58. Kc4 {[%clk 0:00:19]} 58... Nxg7 {[%clk 0:00:03]} 59.
Nf7+ {[%clk 0:00:19.4]} 59... Kc7 {[%clk 0:00:02.8]} 60. Ng5 {[%clk 0:00:17.9]}
60... Ne8 {[%clk 0:00:03.4]} 61. Ne4 {[%clk 0:00:17.5]} 61... Nd6+ {[%clk
0:00:03.3]} 62. Kd5 {[%clk 0:00:17.4]} 62... Nxb5 {[%clk 0:00:03.1]} 63. Nd2
{[%clk 0:00:14.1]} 63... Kb7 {[%clk 0:00:04]} 64. Nc4 {[%clk 0:00:14.2]} 64...
Ka6 {[%clk 0:00:04.9]} 65. Nxb6 {[%clk 0:00:14.6]} 1/2-1/2

[Event "Late-Titled-Tuesday-Blitz-February-20-2024"]
[Site "Chess.com"]
[Date "2024.02.20"]
[Round "7"]
[White "VinzentSpitzl"]
[Black "Kopytkin"]
[Result "0-1"]
[WhiteElo "2531"]
[BlackElo "2418"]
[TimeControl "180+1"]
[EndTime "15:18:12 PST"]
[Termination "Kopytkin won by resignation"]

1. e4 {[%clk 0:03:00.9]} 1... Nf6 {[%clk 0:02:59.7]} 2. e5 {[%clk 0:03:00.3]}
2... Nd5 {[%clk 0:02:59.9]} 3. d4 {[%clk 0:03:00.6]} 3... d6 {[%clk 0:03:00.4]}
4. Nf3 {[%clk 0:03:00.8]} 4... g6 {[%clk 0:03:00.2]} 5. Be2 {[%clk 0:02:59.7]}
5... Bg7 {[%clk 0:03:00]} 6. O-O {[%clk 0:02:59.7]} 6... O-O {[%clk 0:03:00.2]}
7. c4 {[%clk 0:02:56.5]} 7... Nb6 {[%clk 0:03:00.2]} 8. exd6 {[%clk 0:02:56.9]}
8... cxd6 {[%clk 0:03:01.1]} 9. Nc3 {[%clk 0:02:57.1]} 9... Bg4 {[%clk 0:02:58]}
10. b3 {[%clk 0:02:50.2]} 10... Nc6 {[%clk 0:02:58]} 11. Be3 {[%clk 0:02:47.4]}
11... d5 {[%clk 0:02:56.6]} 12. c5 {[%clk 0:02:44.2]} 12... Nc8 {[%clk
0:02:57.2]} 13. b4 {[%clk 0:02:34]} 13... a6 {[%clk 0:02:55.1]} 14. h3 {[%clk
0:02:26.1]} 14... Bxf3 {[%clk 0:02:55.1]} 15. Bxf3 {[%clk 0:02:25.9]} 15... e6
{[%clk 0:02:56]} 16. b5 {[%clk 0:02:17.9]} 16... axb5 {[%clk 0:02:55.1]} 17.
Nxb5 {[%clk 0:02:17.4]} 17... N8e7 {[%clk 0:02:53.1]} 18. Qd2 {[%clk 0:02:03.7]}
18... Nf5 {[%clk 0:02:52.6]} 19. Rab1 {[%clk 0:02:02.4]} 19... Nxe3 {[%clk
0:02:39.9]} 20. fxe3 {[%clk 0:02:00]} 20... Bh6 {[%clk 0:02:40]} 21. Qf2 {[%clk
0:01:53.8]} 21... b6 {[%clk 0:02:34.1]} 22. cxb6 {[%clk 0:01:46.4]} 22... Qxb6
{[%clk 0:02:34.1]} 23. Bg4 {[%clk 0:01:12.6]} 23... Na5 {[%clk 0:02:30]} 24. Kh1
{[%clk 0:01:02.5]} 24... Nc4 {[%clk 0:02:29]} 25. Rfe1 {[%clk 0:00:52.6]} 25...
Qd8 {[%clk 0:02:15.4]} 26. Rb3 {[%clk 0:00:44.4]} 26... Bg5 {[%clk 0:02:11]} 27.
a3 {[%clk 0:00:36.7]} 27... Rb8 {[%clk 0:02:00.5]} 28. a4 {[%clk 0:00:34.6]}
28... Ra8 {[%clk 0:01:59.3]} 29. Be2 {[%clk 0:00:31.4]} 29... Rxa4 {[%clk
0:01:52.1]} 30. Bxc4 {[%clk 0:00:31.4]} 30... Rxc4 {[%clk 0:01:52.3]} 31. Ra3
{[%clk 0:00:22.2]} 31... Bh4 {[%clk 0:01:52.1]} 32. g3 {[%clk 0:00:22.4]} 32...
Bg5 {[%clk 0:01:42.3]} 33. h4 {[%clk 0:00:20.5]} 33... Bh6 {[%clk 0:01:36]} 34.
Nc3 {[%clk 0:00:18.1]} 34... Qc7 {[%clk 0:01:33.9]} 35. Ne2 {[%clk 0:00:17.5]}
35... Rc2 {[%clk 0:01:33.1]} 36. Qf3 {[%clk 0:00:16.2]} 36... Rb8 {[%clk
0:01:25.7]} 37. Rea1 {[%clk 0:00:11.4]} 37... Rcb2 {[%clk 0:01:03.4]} 38. Nf4
{[%clk 0:00:09.3]} 38... Bxf4 {[%clk 0:01:02.4]} 39. Qxf4 {[%clk 0:00:09]} 39...
Qxf4 {[%clk 0:01:02]} 40. gxf4 {[%clk 0:00:07.2]} 40... Kg7 {[%clk 0:00:57.9]}
41. R3a2 {[%clk 0:00:04.8]} 41... Kf6 {[%clk 0:00:35.1]} 42. Ra7 {[%clk
0:00:04.5]} 42... Re2 {[%clk 0:00:26.4]} 43. Rc7 {[%clk 0:00:04.3]} 43... Rbb2
{[%clk 0:00:25.8]} 44. Kg1 {[%clk 0:00:02.6]} 44... h5 {[%clk 0:00:25]} 45. Kf1
{[%clk 0:00:02.1]} 45... Rh2 {[%clk 0:00:24.7]} 46. Kg1 {[%clk 0:00:02.6]} 46...
Rbg2+ {[%clk 0:00:24.8]} 47. Kf1 {[%clk 0:00:01.5]} 47... Rc2 {[%clk 0:00:18]}
48. Kg1 {[%clk 0:00:01.7]} 48... Rhg2+ {[%clk 0:00:13.5]} 49. Kf1 {[%clk
0:00:01.8]} 49... Rgf2+ {[%clk 0:00:13.9]} 50. Kg1 {[%clk 0:00:02.1]} 50... Rfe2
{[%clk 0:00:13.7]} 51. Rxc2 {[%clk 0:00:01.5]} 51... Rxc2 {[%clk 0:00:14.6]} 52.
Ra3 {[%clk 0:00:01.1]} 52... Kf5 {[%clk 0:00:14.7]} 53. Ra7 {[%clk 0:00:01.6]}
53... f6 {[%clk 0:00:15.2]} 54. Rf7 {[%clk 0:00:01.8]} 54... Re2 {[%clk
0:00:15.1]} 55. Kf1 {[%clk 0:00:01.9]} 55... Rxe3 {[%clk 0:00:15.2]} 56. Kf2
{[%clk 0:00:02.8]} 56... Re4 {[%clk 0:00:15.5]} 57. Kf3 {[%clk 0:00:03.3]} 57...
Rxf4+ {[%clk 0:00:15.6]} 58. Ke3 {[%clk 0:00:04]} 58... Re4+ {[%clk 0:00:15.8]}
0-1

[Event "Late-Titled-Tuesday-Blitz-February-20-2024"]
[Site "Chess.com"]
[Date "2024.02.20"]
[Round "7"]
[White "elchacal664"]
[Black "zajka-molotok"]
[Result "0-1"]
[WhiteElo "2373"]
[BlackElo "2522"]
[TimeControl "180+1"]
[EndTime "15:18:20 PST"]
[Termination "zajka-molotok won by checkmate"]

1. c4 {[%clk 0:03:00.9]} 1... e5 {[%clk 0:02:59.4]} 2. Nf3 {[%clk 0:03:01.8]}
2... e4 {[%clk 0:02:57.7]} 3. Nd4 {[%clk 0:03:01.9]} 3... Nc6 {[%clk 0:02:56.3]}
4. Nxc6 {[%clk 0:02:59.3]} 4... dxc6 {[%clk 0:02:57.2]} 5. Nc3 {[%clk 0:02:59]}
5... Bf5 {[%clk 0:02:55.4]} 6. Qb3 {[%clk 0:02:52.1]} 6... Rb8 {[%clk
0:02:44.5]} 7. Qc2 {[%clk 0:02:44.7]} 7... Nf6 {[%clk 0:02:43.3]} 8. f3 {[%clk
0:02:42.7]} 8... Qe7 {[%clk 0:02:34.1]} 9. f4 {[%clk 0:02:39.9]} 9... Qe6 {[%clk
0:02:30.6]} 10. e3 {[%clk 0:02:38.7]} 10... Bc5 {[%clk 0:02:15.7]} 11. a3 {[%clk
0:02:37]} 11... a5 {[%clk 0:02:15.1]} 12. Be2 {[%clk 0:02:33.8]} 12... h5 {[%clk
0:02:11.3]} 13. Rb1 {[%clk 0:02:31.8]} 13... O-O {[%clk 0:02:04.7]} 14. b4
{[%clk 0:02:27.8]} 14... axb4 {[%clk 0:02:03.6]} 15. axb4 {[%clk 0:02:28.7]}
15... Be7 {[%clk 0:02:03.2]} 16. O-O {[%clk 0:02:23.4]} 16... Rfe8 {[%clk
0:02:00.8]} 17. c5 {[%clk 0:02:06]} 17... Rbd8 {[%clk 0:01:59.5]} 18. Qb3 {[%clk
0:01:56]} 18... Qxb3 {[%clk 0:01:54.7]} 19. Rxb3 {[%clk 0:01:56.9]} 19... Bg4
{[%clk 0:01:49.2]} 20. Ra3 {[%clk 0:01:55.1]} 20... Bxe2 {[%clk 0:01:43.1]} 21.
Nxe2 {[%clk 0:01:56]} 21... Nd5 {[%clk 0:01:42.5]} 22. Rb3 {[%clk 0:01:33.7]}
22... Bf6 {[%clk 0:01:40.3]} 23. b5 {[%clk 0:01:31.1]} 23... cxb5 {[%clk
0:01:28.1]} 24. Rxb5 {[%clk 0:01:29.5]} 24... b6 {[%clk 0:01:27.9]} 25. cxb6
{[%clk 0:01:28.8]} 25... cxb6 {[%clk 0:01:17.8]} 26. Bb2 {[%clk 0:01:19.8]}
26... Nc7 {[%clk 0:01:12.6]} 27. Rxb6 {[%clk 0:01:17.4]} 27... Rxd2 {[%clk
0:01:11.9]} 28. Bxf6 {[%clk 0:01:16.4]} 28... Rxe2 {[%clk 0:01:07.4]} 29. Bd4
{[%clk 0:01:14.6]} 29... Ne6 {[%clk 0:00:57.2]} 30. Rf2 {[%clk 0:01:08.1]} 30...
Nxd4 {[%clk 0:00:54.7]} 31. exd4 {[%clk 0:01:08.2]} 31... Re3 {[%clk 0:00:42.7]}
32. Rb5 {[%clk 0:01:03.7]} 32... g6 {[%clk 0:00:39.5]} 33. Re5 {[%clk
0:01:01.3]} 33... Rd8 {[%clk 0:00:35.6]} 34. d5 {[%clk 0:01:01.3]} 34... f6
{[%clk 0:00:34]} 35. Re6 {[%clk 0:00:57.9]} 35... Kf7 {[%clk 0:00:23.4]} 36. f5
{[%clk 0:00:57.8]} 36... Re1+ {[%clk 0:00:20]} 37. Rf1 {[%clk 0:00:56.9]} 37...
Rxf1+ {[%clk 0:00:20.5]} 38. Kxf1 {[%clk 0:00:57.6]} 38... gxf5 {[%clk
0:00:20.9]} 39. Ra6 {[%clk 0:00:53.7]} 39... Rxd5 {[%clk 0:00:20.9]} 40. Kf2
{[%clk 0:00:54.2]} 40... Rd2+ {[%clk 0:00:19.9]} 41. Kg3 {[%clk 0:00:53.3]}
41... Kg6 {[%clk 0:00:19.7]} 42. Ra8 {[%clk 0:00:52.4]} 42... f4+ {[%clk
0:00:16.1]} 43. Kxf4 {[%clk 0:00:51.7]} 43... Kf7 {[%clk 0:00:08.8]} 44. Kg3
{[%clk 0:00:50.6]} 44... Ke6 {[%clk 0:00:07.3]} 45. Rh8 {[%clk 0:00:49.1]} 45...
f5 {[%clk 0:00:06.8]} 46. Rxh5 {[%clk 0:00:48.8]} 46... Ke5 {[%clk 0:00:07.3]}
47. Rh8 {[%clk 0:00:46.9]} 47... Rd3+ {[%clk 0:00:06.3]} 48. Kf2 {[%clk
0:00:46.8]} 48... Kf4 {[%clk 0:00:06.7]} 49. Rh4+ {[%clk 0:00:45.8]} 49... Kg5
{[%clk 0:00:06.6]} 50. Rh8 {[%clk 0:00:46.7]} 50... Rd2+ {[%clk 0:00:06.5]} 51.
Kf1 {[%clk 0:00:46.6]} 51... Kf4 {[%clk 0:00:06]} 52. Rh4+ {[%clk 0:00:46.7]}
52... Ke3 {[%clk 0:00:06.3]} 53. Rh3+ {[%clk 0:00:47.2]} 53... Kd4 {[%clk
0:00:05.9]} 54. Ra3 {[%clk 0:00:47]} 54... f4 {[%clk 0:00:05.8]} 55. h4 {[%clk
0:00:47]} 55... e3 {[%clk 0:00:03.9]} 56. Ra4+ {[%clk 0:00:45.5]} 56... Ke5
{[%clk 0:00:03]} 57. Ra5+ {[%clk 0:00:45.5]} 57... Ke4 {[%clk 0:00:03.4]} 58.
Ra4+ {[%clk 0:00:45]} 58... Kf5 {[%clk 0:00:03.7]} 59. h5 {[%clk 0:00:41.3]}
59... Rd1+ {[%clk 0:00:03.6]} 60. Ke2 {[%clk 0:00:40.3]} 60... Rh1 {[%clk
0:00:04.2]} 61. Kf3 {[%clk 0:00:36.7]} 61... Rf1+ {[%clk 0:00:03.7]} 62. Ke2
{[%clk 0:00:35.2]} 62... Rf2+ {[%clk 0:00:04.3]} 63. Ke1 {[%clk 0:00:35.6]}
63... Rxg2 {[%clk 0:00:04.5]} 64. h6 {[%clk 0:00:36]} 64... Rh2 {[%clk
0:00:03.8]} 65. Ra6 {[%clk 0:00:28.6]} 65... f3 {[%clk 0:00:03.2]} 66. Kd1
{[%clk 0:00:27]} 66... Rh1+ {[%clk 0:00:02.4]} 67. Kc2 {[%clk 0:00:27.2]} 67...
f2 {[%clk 0:00:03.1]} 68. Ra5+ {[%clk 0:00:26.1]} 68... Kf4 {[%clk 0:00:02.4]}
69. Rh5 {[%clk 0:00:27]} 69... Rxh5 {[%clk 0:00:01.8]} 70. h7 {[%clk 0:00:27.4]}
70... Rxh7 {[%clk 0:00:02.3]} 71. Kb3 {[%clk 0:00:26.7]} 71... Rc7 {[%clk
0:00:03.2]} 72. Ka3 {[%clk 0:00:27.3]} 72... Kf3 {[%clk 0:00:04.1]} 73. Ka4
{[%clk 0:00:27.9]} 73... f1=Q {[%clk 0:00:05]} 74. Ka5 {[%clk 0:00:28.6]} 74...
Qb1 {[%clk 0:00:05.4]} 75. Ka6 {[%clk 0:00:28.6]} 75... Rc8 {[%clk 0:00:06.2]}
76. Ka7 {[%clk 0:00:29]} 76... Rb8 {[%clk 0:00:06.8]} 77. Ka6 {[%clk 0:00:29]}
77... Ra8# {[%clk 0:00:07.7]} 0-1